bitfinex-derivatives/quotes_BTCF0:USTF0_20241110
["timestamp","ask_amount","ask_price","bid_price","bid_amount"]
[1731201330286,0.065036,76838.0,76829.0,0.11884]
[1731201330599,0.3608,76842.0,76832.0,0.11228959]
[1731201330798,0.3608,76842.0,76832.0,0.17732959]
[1731201331387,0.3608,76842.0,76832.0,0.11228959]
[1731201331593,0.3608,76842.0,76834.0,0.065039]
[1731201331892,0.065029,76846.0,76834.0,0.065039]
[1731201332100,0.3608,76848.0,76832.0,0.11308959]
[1731201332412,0.065034,76840.0,76832.0,0.47308959]
[1731201332899,0.065034,76840.0,76832.0,0.11228959]
[1731201333788,0.02841638,76846.0,76839.0,0.11228959]
[1731201333993,0.065029,76846.0,76839.0,0.11228959]
[1731201334697,0.3608,76848.0,76839.0,0.11228959]
[1731201334899,0.065018,76859.0,76847.0,0.065028]
[1731201335196,0.065018,76859.0,76844.0,0.47308959]
[1731201335197,0.02884981,76860.0,76850.0,0.17731459]
[1731201335404,0.065008,76871.0,76856.0,0.06502]
[1731201335700,0.065017,76861.0,76854.0,0.11228959]
[1731201335901,0.3608,76865.0,76852.0,0.3608]
[1731201335902,0.3608,76858.0,76852.0,0.3608]
[1731201336101,0.3608,76858.0,76849.0,0.11228959]
[1731201336102,0.425819,76858.0,76849.0,0.11228959]
[1731201336289,0.425819,76858.0,76850.0,0.11884]
[1731201337198,0.3608,76858.0,76851.0,0.11624]
[1731201337395,0.06502,76857.0,76851.0,0.11624]
[1731201337896,0.3608,76858.0,76850.0,0.11624]
[1731201338099,0.065022,76854.0,76850.0,0.11624]
[1731201338893,0.3608,76858.0,76850.0,0.11624]
[1731201339207,0.3608,76858.0,76850.0,0.11228959]
[1731201340897,0.065022,76854.0,76850.0,0.11228959]
[1731201341102,0.065022,76854.0,76850.0,0.22852959]
[1731201341796,0.3608,76858.0,76850.0,0.22852959]
[1731201342099,0.3608,76858.0,76856.0,0.11228959]
[1731201342305,0.3608,76858.0,76856.0,0.17730959]
[1731201343602,0.065013,76865.0,76856.0,0.11228959]
[1731201343805,0.3608,76862.0,76851.0,0.425824]
[1731201344103,0.3608,76862.0,76851.0,0.542064]
[1731201344906,0.425816,76862.0,76851.0,0.542064]
[1731201345097,0.425816,76862.0,76851.0,0.47704]
[1731201345098,0.3608,76862.0,76851.0,0.47704]
[1731201345402,0.065018,76859.0,76851.0,0.47704]
[1731201347203,0.3608,76862.0,76851.0,0.3608]
[1731201347401,0.065022,76855.0,76851.0,0.3608]
[1731201347901,0.065023,76854.0,76851.0,0.3608]
[1731201348104,0.47308959,76853.0,76838.0,0.03896052]
[1731201348302,0.3608,76840.0,76832.0,0.1162]
[1731201349605,0.3608,76840.0,76830.0,0.11228959]
[1731201349804,0.3608,76840.0,76830.0,0.22848959]
[1731201350010,0.3608,76833.0,76826.0,0.00072]
[1731201350308,0.3608,76833.0,76819.0,0.39976052]
[1731201350309,0.065045,76828.0,76819.0,0.39976052]
[1731201350503,0.0322,76832.0,76819.0,0.3608]
[1731201350804,0.0322,76832.0,76818.0,0.00195255]
[1731201350805,0.3608,76825.0,76818.0,0.00195255]
[1731201351012,0.065051,76820.0,76818.0,0.00195255]
[1731201353311,0.06070961,76824.0,76818.0,0.00195255]
[1731201353312,0.0327,76824.0,76818.0,0.00195255]
[1731201353512,0.3608,76825.0,76818.0,0.00195255]
[1731201353701,0.425847,76825.0,76818.0,0.00195255]
[1731201354112,0.425847,76825.0,76820.0,0.03896052]
[1731201354316,0.425847,76825.0,76821.0,0.03896052]
[1731201354607,0.425847,76825.0,76822.0,0.11228959]
[1731201354608,0.3608,76825.0,76822.0,0.11228959]
[1731201354814,0.3608,76825.0,76822.0,0.15125011]
[1731201355208,0.3608,76825.0,76823.0,0.03896052]
[1731201355409,0.3608,76825.0,76822.0,0.15125011]
[1731201355701,0.3608,76833.0,76824.0,0.03896052]
[1731201355906,0.3608,76833.0,76828.0,0.11228959]
[1731201358714,0.0019531,76836.0,76830.0,0.065042]
[1731201358912,0.0019531,76836.0,76835.0,0.11228959]
[1731201363509,0.02832756,76848.0,76835.0,0.14508959]
[1731201363713,0.3608,76850.0,76835.0,0.11228959]
[1731201363714,0.065031,76844.0,76835.0,0.11228959]
[1731201363913,0.3608,76850.0,76835.0,0.11228959]
[1731201364420,0.065027,76849.0,76835.0,0.11228959]
[1731201365414,0.38966295,76850.0,76835.0,0.11228959]
[1731201365719,0.38966295,76850.0,76831.0,0.11624]
[1731201365720,0.3608,76842.0,76831.0,0.11624]
[1731201365913,0.3608,76842.0,76809.0,0.3608]
[1731201365914,0.065041,76833.0,76824.0,0.11624]
[1731201366716,0.065043,76829.0,76823.0,0.14408959]
[1731201367926,0.065043,76829.0,76823.0,0.11228959]
[1731201368821,0.065045,76828.0,76823.0,0.11228959]
[1731201370020,0.0305,76833.0,76823.0,0.11228959]
[1731201370214,0.097639,76834.0,76823.0,0.11228959]
[1731201370410,0.097639,76834.0,76828.0,0.11228959]
[1731201371023,0.0327,76841.0,76833.0,0.11228959]
[1731201371024,0.065033,76841.0,76833.0,0.11228959]
[1731201371216,0.065033,76841.0,76838.0,0.11228959]
[1731201371727,0.47308959,76842.0,76828.0,0.11372]
[1731201372119,0.065039,76834.0,76828.0,0.11372]
[1731201372430,0.065043,76830.0,76828.0,0.11372]
[1731201372617,0.065044,76829.0,76823.0,0.0303]
[1731201375834,0.3608,76835.0,76821.0,0.00072]
[1731201375835,0.065049,76822.0,76821.0,0.00072]
[1731201376025,0.065049,76822.0,76818.0,0.00195255]
[1731201379329,0.065051,76820.0,76818.0,0.00195255]
[1731201380218,0.3608,76825.0,76818.0,0.00195255]
[1731201380425,0.3608,76825.0,76822.0,0.11228959]
[1731201381630,0.065043,76830.0,76822.0,0.11228959]
[1731201381830,0.065043,76830.0,76823.0,0.0327]
[1731201383022,0.02513127,76829.0,76823.0,0.0327]
[1731201383330,0.02513181,76828.0,76823.0,0.0327]
[1731201383519,0.065043,76830.0,76823.0,0.0327]
[1731201383725,0.02513126,76829.0,76823.0,0.0327]
[1731201383927,0.065043,76830.0,76823.0,0.0327]
[1731201384121,0.065045,76827.0,76823.0,0.0327]
[1731201384333,0.065046,76826.0,76823.0,0.07166052]
[1731201384935,0.065046,76826.0,76824.0,0.03896052]
[1731201385226,0.065046,76826.0,76823.0,0.07166052]
[1731201385427,0.065046,76826.0,76824.0,0.03896052]
[1731201386620,0.065046,76826.0,76825.0,0.03896052]
[1731201387234,0.065046,76826.0,76824.0,0.03896052]
[1731201388725,0.38881231,76834.0,76824.0,0.03896052]
[1731201388927,0.065041,76833.0,76824.0,0.03896052]
[1731201389225,0.065041,76832.0,76825.0,0.07186052]
[1731201389421,0.065042,76831.0,76825.0,0.07186052]
[1731201390836,0.38881231,76834.0,76828.0,0.11228959]
[1731201391029,0.38881231,76834.0,76830.0,0.065042]
[1731201391030,0.3608,76834.0,76830.0,0.065042]
[1731201391234,0.3608,76834.0,76831.0,0.03896052]
[1731201391426,0.3608,76834.0,76832.0,0.03896052]
[1731201392128,0.42584,76834.0,76832.0,0.03896052]
[1731201392334,0.42584,76834.0,76825.0,0.0329]
[1731201392335,0.065044,76829.0,76825.0,0.0329]
[1731201392532,0.065044,76828.0,76825.0,0.0329]
[1731201392734,0.065046,76826.0,76823.0,0.11376]
[1731201393526,0.065047,76825.0,76820.0,0.3608]
[1731201395531,0.02513175,76824.0,76820.0,0.3608]
[1731201395734,0.065047,76825.0,76819.0,0.02841255]
[1731201395936,0.0251323,76824.0,76818.0,0.11571255]
[1731201396239,0.065047,76825.0,76818.0,0.11571255]
[1731201396240,0.0251323,76823.0,76818.0,0.11571255]
[1731201396428,0.065047,76825.0,76818.0,0.11571255]
[1731201396429,0.02513258,76822.0,76818.0,0.11571255]
[1731201396636,0.065047,76825.0,76818.0,0.14339418]
[1731201396837,0.02513226,76824.0,76818.0,0.14339418]
[1731201397134,0.02513226,76823.0,76818.0,0.14339418]
[1731201397331,0.065047,76825.0,76818.0,0.14339418]
[1731201397533,0.02513226,76824.0,76818.0,0.14339418]
[1731201397749,0.02513226,76823.0,76818.0,0.14339418]
[1731201398041,0.065049,76823.0,76818.0,0.14339418]
[1731201398445,0.02513226,76822.0,76818.0,0.14339418]
[1731201398734,0.02778645,76829.0,76818.0,0.11571255]
[1731201398940,0.05699352,76828.0,76818.0,0.11571255]
[1731201399239,0.065049,76823.0,76818.0,0.11571255]
[1731201399435,0.065049,76823.0,76822.0,0.03896052]
[1731201400242,0.065042,76831.0,76822.0,0.17733859]
[1731201400538,0.3608,76834.0,76829.0,0.11228959]
[1731201400840,0.06504,76833.0,76827.0,0.03900005]
[1731201401736,0.06504,76833.0,76823.0,0.22899476]
[1731201401737,0.06504,76833.0,76828.0,0.03900005]
[1731201401935,0.065043,76830.0,76827.0,0.03900005]
[1731201402136,0.065043,76829.0,76827.0,0.03900005]
[1731201402343,0.065043,76829.0,76826.0,0.03900005]
[1731201402545,0.065043,76829.0,76825.0,0.03900005]
[1731201403043,0.065043,76829.0,76826.0,0.03900005]
[1731201403943,0.065045,76828.0,76827.0,0.03900005]
[1731201404344,0.065045,76828.0,76823.0,0.11228959]
[1731201404645,0.065045,76828.0,76827.0,0.0390136]
[1731201404847,0.38922105,76834.0,76823.0,0.11228959]
[1731201405146,0.065045,76827.0,76823.0,0.11228959]
[1731201405934,0.065045,76827.0,76823.0,0.16394676]
[1731201406134,0.065045,76827.0,76823.0,0.11228959]
[1731201407052,0.065045,76827.0,76823.0,0.16394676]
[1731201407939,0.38922105,76834.0,76823.0,0.16394676]
[1731201408132,0.38922105,76834.0,76828.0,0.03901882]
[1731201408337,0.065043,76829.0,76828.0,0.03901882]
[1731201409939,0.38922105,76834.0,76828.0,0.03901882]
[1731201410140,0.45426005,76834.0,76828.0,0.03901882]
[1731201410333,0.06504,76833.0,76828.0,0.03901882]
[1731201410744,0.065041,76832.0,76828.0,0.03901882]
[1731201411242,0.065041,76832.0,76824.0,0.065047]
[1731201412045,0.3608,76831.0,76823.0,0.11228959]
[1731201412248,0.065044,76829.0,76824.0,0.05203499]
[1731201417646,0.02513174,76828.0,76819.0,0.47132]
[1731201417835,0.065046,76826.0,76819.0,0.4706]
[1731201418647,0.065047,76825.0,76819.0,0.4706]
[1731201418838,0.065049,76823.0,76819.0,0.4706]
[1731201419040,0.3608,76831.0,76819.0,0.3608]
[1731201419541,0.06505,76821.0,76819.0,0.3608]
[1731201419749,0.065051,76820.0,76819.0,0.3608]
[1731201421543,0.065051,76820.0,76818.0,0.00195255]
[1731201422438,0.065051,76820.0,76818.0,0.001086]
[1731201422644,0.50280959,76819.0,76818.0,0.001086]
[1731201422844,0.50280959,76819.0,76805.0,0.03902395]
[1731201422845,0.72281413,76819.0,76805.0,0.03902395]
[1731201423055,0.3608,76808.0,76802.0,0.03903156]
[1731201423252,0.17758959,76807.0,76799.0,0.03903156]
[1731201423450,0.065071,76796.0,76793.0,0.05203499]
[1731201423652,0.47308959,76801.0,76792.0,0.03899144]
[1731201423959,0.065077,76789.0,76787.0,0.03899144]
[1731201424249,0.3608,76793.0,76780.0,0.11228959]
[1731201424451,0.47308959,76801.0,76780.0,0.11228959]
[1731201424452,0.1098,76798.0,76785.0,0.06508]
[1731201424846,0.065077,76790.0,76780.0,0.11228959]
[1731201425043,0.3608,76791.0,76779.0,0.0627]
[1731201425044,0.065081,76785.0,76779.0,0.0627]
[1731201425842,0.3608,76791.0,76779.0,0.0627]
[1731201426045,0.3608,76791.0,76782.0,0.065083]
[1731201426349,0.065075,76792.0,76782.0,0.065083]
[1731201426544,0.1098,76798.0,76780.0,0.11228959]
[1731201426545,0.3887953,76794.0,76780.0,0.11228959]
[1731201426739,0.3608,76794.0,76780.0,0.11228959]
[1731201427157,0.3608,76783.0,76780.0,0.11228959]
[1731201429256,0.065077,76789.0,76780.0,0.11228959]
[1731201430554,0.38866214,76794.0,76780.0,0.17737459]
[1731201430747,0.3608,76794.0,76793.0,0.11228959]
[1731201431548,0.3608,76794.0,76787.0,0.22052959]
[1731201433046,0.065076,76791.0,76787.0,0.10824]
[1731201433860,0.065078,76788.0,76787.0,0.10824]
[1731201434363,0.3608,76794.0,76787.0,0.11228959]
[1731201435364,0.3608,76801.0,76793.0,0.47308959]
[1731201435564,0.3608,76801.0,76800.0,0.11228959]
[1731201437050,0.065061,76809.0,76800.0,0.11228959]
[1731201437051,0.3608,76808.0,76800.0,0.11228959]
[1731201437767,0.3608,76808.0,76800.0,0.17735759]
[1731201439258,0.065061,76809.0,76800.0,0.17735759]
[1731201439966,0.065067,76802.0,76797.0,0.3608]
[1731201440160,0.065067,76802.0,76794.0,0.24638103]
[1731201440354,0.065067,76802.0,76794.0,0.0951]
[1731201441464,0.425867,76802.0,76794.0,0.0951]
[1731201441669,0.065071,76797.0,76788.0,0.15128103]
[1731201441967,0.065071,76797.0,76786.0,0.065079]
[1731201441968,0.065071,76797.0,76789.0,0.10824]
[1731201442470,0.0307,76801.0,76790.0,0.10824]
[1731201442658,0.065071,76796.0,76790.0,0.10824]
[1731201443363,0.0307,76801.0,76787.0,0.36152]
[1731201443364,0.065073,76795.0,76787.0,0.36152]
[1731201443574,0.065074,76793.0,76787.0,0.3608]
[1731201443861,0.11228959,76796.0,76784.0,0.10824]
[1731201443862,0.065077,76790.0,76784.0,0.10824]
[1731201444057,0.065078,76788.0,76784.0,0.10824]
[1731201444253,0.3608,76794.0,76782.0,0.0638]
[1731201444660,0.3608,76794.0,76779.0,0.10824]
[1731201444661,0.11228959,76790.0,76779.0,0.10824]
[1731201444863,0.065081,76785.0,76779.0,0.10824]
[1731201445759,0.3608,76787.0,76779.0,0.10824]
[1731201445964,0.3608,76787.0,76775.0,0.10824]
[1731201446560,0.3608,76787.0,76773.0,0.14064]
[1731201447054,0.065084,76781.0,76773.0,0.14064]
[1731201447458,0.065084,76781.0,76772.0,0.03465372]
[1731201447459,0.3608,76787.0,76772.0,0.00195372]
[1731201447659,0.47308959,76773.0,76772.0,0.00195372]
[1731201447861,0.06509,76774.0,76772.0,0.00195372]
[1731201451674,0.47308959,76773.0,76772.0,0.00195372]
[1731201453979,0.065095,76769.0,76764.0,0.03899144]
[1731201454272,0.065095,76768.0,76764.0,0.03899144]
[1731201454771,0.3608,76773.0,76764.0,0.03899144]
[1731201454772,0.065096,76767.0,76764.0,0.03899144]
[1731201455073,0.0325212,76767.0,76765.0,0.03899144]
[1731201455269,0.0325212,76767.0,76764.0,0.03899144]
[1731201455469,0.065097,76766.0,76764.0,0.03899144]
[1731201455666,0.065097,76766.0,76762.0,0.03899144]
[1731201455865,0.065097,76766.0,76763.0,0.03899144]
[1731201456370,0.065097,76766.0,76762.0,0.03899144]
[1731201456772,0.065097,76766.0,76763.0,0.03899144]
[1731201457570,0.065097,76766.0,76762.0,0.03899144]
[1731201457877,0.11228959,76772.0,76762.0,0.03899144]
[1731201458061,0.3608,76766.0,76756.0,0.03888468]
[1731201458267,0.3608,76759.0,76754.0,0.00072]
[1731201458568,0.065108,76753.0,76751.0,0.3608]
[1731201458968,0.11228959,76753.0,76750.0,0.03888468]
[1731201459172,0.3608,76751.0,76744.0,0.0388762]
[1731201459372,0.065114,76746.0,76744.0,0.0388762]
[1731201459575,0.065114,76746.0,76742.0,0.0388762]
[1731201459777,0.065114,76746.0,76741.0,0.04083069]
[1731201460578,0.065114,76746.0,76741.0,0.00195449]
[1731201461077,0.065116,76743.0,76741.0,0.04083069]
[1731201461272,0.065116,76743.0,76741.0,0.00195449]
[1731201462276,0.11228959,76747.0,76741.0,0.00195449]
[1731201462472,0.3608,76751.0,76741.0,0.00195449]
[1731201462776,0.065111,76750.0,76741.0,0.06707249]
[1731201463272,0.065111,76750.0,76742.0,0.065117]
[1731201463467,0.3608,76751.0,76741.0,0.11424408]
[1731201463863,0.3608,76751.0,76741.0,0.00195449]
[1731201464073,0.065115,76745.0,76741.0,0.00195449]
[1731201464270,0.11228959,76748.0,76741.0,0.00195449]
[1731201464474,0.065117,76743.0,76741.0,0.00195449]
[1731201467979,0.0321,76749.0,76741.0,0.00195449]
[1731201468377,0.065113,76747.0,76741.0,0.00195449]
[1731201468575,0.065114,76746.0,76741.0,0.00195449]
[1731201469183,0.0321,76749.0,76741.0,0.00195449]
[1731201469380,0.065115,76745.0,76741.0,0.00195449]
[1731201470176,0.0321,76749.0,76741.0,0.00195449]
[1731201470371,0.3608,76751.0,76741.0,0.00195449]
[1731201470576,0.3608,76751.0,76750.0,0.11228959]
[1731201470880,0.065106,76756.0,76750.0,0.11228959]
[1731201471088,0.065106,76756.0,76751.0,0.0307]
[1731201471469,0.3608,76758.0,76755.0,0.11228959]
[1731201472072,0.3608,76758.0,76756.0,0.065105]
[1731201472482,0.065095,76769.0,76757.0,0.3608]
[1731201472675,0.09294768,76769.0,76757.0,0.3608]
[1731201473879,0.02785268,76769.0,76758.0,0.0632]
[1731201474185,0.3608,76765.0,76758.0,0.0632]
[1731201475081,0.3608,76765.0,76760.0,0.065101]
[1731201475281,0.3608,76765.0,76760.0,0.1039772]
[1731201475678,0.02900399,76771.0,76763.0,0.065099]
[1731201475875,0.36148,76774.0,76762.0,0.11228959]
[1731201476086,0.425884,76781.0,76768.0,0.47308959]
[1731201476287,0.425884,76781.0,76771.0,0.0388762]
[1731201476583,0.3608,76781.0,76772.0,0.0388762]
[1731201476880,0.3608,76781.0,76771.0,0.065092]
[1731201477279,0.3608,76781.0,76771.0,0.11712699]
[1731201477786,0.3608,76789.0,76770.0,0.3608]
[1731201477992,0.3608,76789.0,76769.0,0.0332]
[1731201477993,0.06702479,76797.0,76788.0,0.11228959]
[1731201478378,0.06702479,76797.0,76783.0,0.34945159]
[1731201478982,0.06702479,76797.0,76784.0,0.10828]
[1731201478983,0.3608,76792.0,76784.0,0.10828]
[1731201479787,0.3608,76792.0,76783.0,0.24117159]
[1731201480083,0.3608,76792.0,76784.0,0.10824]
[1731201480282,0.065072,76796.0,76784.0,0.10824]
[1731201480489,0.3608,76792.0,76784.0,0.10824]
[1731201481378,0.065072,76796.0,76784.0,0.10824]
[1731201481583,0.3608,76792.0,76784.0,0.10824]
[1731201481981,0.00195379,76797.0,76784.0,0.173321]
[1731201482780,0.11228959,76794.0,76785.0,0.13884]
[1731201483596,0.065085,76780.0,76766.0,0.3608]
[1731201483888,0.7216,76791.0,76768.0,0.0331]
[1731201483889,0.11228959,76777.0,76768.0,0.0331]
[1731201484083,0.065089,76776.0,76768.0,0.0331]
[1731201484391,0.11228959,76777.0,76768.0,0.0331]
[1731201484586,0.065092,76772.0,76768.0,0.0331]
[1731201486185,0.3608,76778.0,76768.0,0.0331]
[1731201487288,0.38851941,76778.0,76768.0,0.0331]
[1731201487488,0.38851941,76778.0,76777.0,0.11228959]
[1731201487489,0.3608,76778.0,76777.0,0.11228959]
[1731201487796,0.065072,76795.0,76780.0,0.065084]
[1731201488090,0.00195379,76797.0,76788.0,0.11228959]
[1731201488397,0.00195379,76797.0,76789.0,0.0649]
[1731201488698,0.00195379,76797.0,76792.0,0.065074]
[1731201488892,0.00195379,76797.0,76794.0,0.11228959]
[1731201489294,0.00195379,76797.0,76789.0,0.17314]
[1731201491092,0.00195379,76797.0,76788.0,0.10816]
[1731201491093,0.11228959,76794.0,76788.0,0.10816]
[1731201491395,0.11228959,76794.0,76783.0,0.10816]
[1731201491595,0.17736259,76794.0,76783.0,0.10816]
[1731201491788,0.065075,76792.0,76783.0,0.10816]
[1731201492385,0.065075,76792.0,76779.0,0.3608]
[1731201492596,0.17736859,76788.0,76782.0,0.10816]
[1731201493495,0.3608,76789.0,76775.0,0.0314]
[1731201493496,0.3608,76789.0,76777.0,0.10816]
[1731201493689,0.3608,76789.0,76772.0,0.3608]
[1731201493690,0.11228959,76788.0,76772.0,0.3608]
[1731201493893,0.11228959,76788.0,76768.0,0.10816]
[1731201493894,0.065089,76776.0,76768.0,0.10816]
[1731201494598,0.0316,76788.0,76775.0,0.11228959]
[1731201494800,0.065072,76795.0,76783.0,0.47308959]
[1731201495205,0.00195379,76797.0,76791.0,0.3608]
[1731201495401,0.00195379,76797.0,76795.0,0.11228959]
[1731201495905,0.00195379,76797.0,76792.0,0.0317]
[1731201496710,0.36275379,76797.0,76792.0,0.0317]
[1731201499212,0.36275379,76797.0,76794.0,0.11228959]
[1731201500206,0.36275379,76797.0,76793.0,0.0314]
[1731201504511,0.36275379,76797.0,76791.0,0.3608]
[1731201505312,0.36275379,76797.0,76791.0,0.425875]
[1731201505608,0.36275379,76797.0,76792.0,0.065074]
[1731201505906,0.36275379,76797.0,76791.0,0.3608]
[1731201505907,0.36275379,76797.0,76793.0,0.065074]
[1731201506108,0.3608,76812.0,76791.0,0.3608]
[1731201506109,0.3608,76812.0,76794.0,0.11228959]
[1731201506303,0.05701136,76811.0,76803.0,0.11228959]
[1731201506505,0.05701136,76810.0,76803.0,0.11228959]
[1731201506806,0.02514019,76809.0,76807.0,0.11228959]
[1731201507108,0.3608,76812.0,76807.0,0.11228959]
[1731201507304,0.02513713,76811.0,76801.0,0.14298959]
[1731201507509,0.02513713,76810.0,76801.0,0.14298959]
[1731201507708,0.02513713,76809.0,76802.0,0.0325]
[1731201507911,0.065056,76814.0,76802.0,0.0325]
[1731201508216,0.065058,76812.0,76802.0,0.0325]
[1731201508514,0.02513662,76811.0,76802.0,0.0325]
[1731201508902,0.02891888,76815.0,76807.0,0.3608]
[1731201509105,0.0304,76816.0,76807.0,0.3608]
[1731201509106,0.02513661,76814.0,76807.0,0.3608]
[1731201509299,0.02513661,76813.0,76807.0,0.3608]
[1731201509608,0.095455,76816.0,76807.0,0.3608]
[1731201509916,0.02513633,76815.0,76807.0,0.3608]
[1731201510112,0.12356019,76816.0,76807.0,0.3608]
[1731201510113,0.02513633,76814.0,76807.0,0.3608]
[1731201510298,0.12356019,76816.0,76807.0,0.3608]
[1731201510498,0.02513617,76815.0,76807.0,0.3608]
[1731201510704,0.02513617,76814.0,76807.0,0.3608]
[1731201511003,0.09316019,76816.0,76807.0,0.3608]
[1731201511207,0.02513626,76815.0,76807.0,0.3608]
[1731201511415,0.09316019,76816.0,76807.0,0.3608]
[1731201511607,0.02513625,76815.0,76807.0,0.3608]
[1731201511806,0.09316019,76816.0,76807.0,0.3608]
[1731201512117,0.09316019,76816.0,76803.0,0.065065]
[1731201512118,0.09019233,76815.0,76806.0,0.3608]
[1731201512309,0.065057,76813.0,76806.0,0.3608]
[1731201512914,0.41985485,76817.0,76806.0,0.425863]
[1731201513117,0.065054,76816.0,76806.0,0.425863]
[1731201515008,0.41989485,76817.0,76806.0,0.425863]
[1731201515215,0.41917485,76817.0,76806.0,0.425863]
[1731201515713,0.3608,76817.0,76813.0,0.11228959]
[1731201516109,0.3608,76817.0,76813.0,0.17734659]
[1731201516819,0.3608,76817.0,76813.0,0.11228959]
[1731201517022,0.3608,76817.0,76814.0,0.10812]
[1731201517903,0.426526,76826.0,76816.0,0.3608]
[1731201518107,0.425846,76826.0,76816.0,0.3608]
[1731201518409,0.02797095,76826.0,76816.0,0.3608]
[1731201518611,0.03190467,76828.0,76816.0,0.3608]
[1731201518612,0.00195341,76828.0,76819.0,0.11228959]
[1731201519311,0.0302134,76828.0,76819.0,0.11228959]
[1731201520213,0.0302134,76828.0,76825.0,0.3608]
[1731201520616,0.00195341,76828.0,76825.0,0.47308959]
[1731201521012,0.00195341,76828.0,76825.0,0.58112959]
[1731201522409,0.00195341,76828.0,76825.0,0.47308959]
[1731201522616,0.00195341,76828.0,76825.0,0.10804]
[1731201525421,0.00195341,76828.0,76817.0,0.0332]
[1731201525627,0.063049,76823.0,76817.0,0.10804]
[1731201525848,0.00195341,76828.0,76812.0,0.065057]
[1731201525849,0.0647,76827.0,76812.0,0.065057]
[1731201526016,0.065049,76822.0,76817.0,0.10804]
[1731201526320,0.02513393,76821.0,76817.0,0.10804]
[1731201526823,0.065049,76822.0,76817.0,0.10804]
[1731201527421,0.0314,76826.0,76797.0,0.03964932]
[1731201527422,0.47308959,76818.0,76797.0,0.03964932]
[1731201527623,0.47308959,76818.0,76793.0,0.03881807]
[1731201527624,0.3608,76808.0,76793.0,0.03881807]
[1731201527923,0.3608,76808.0,76790.0,0.00195309]
[1731201527924,0.3608,76798.0,76790.0,0.00195309]
[1731201528315,0.065075,76792.0,76790.0,0.00195309]
[1731201528621,0.3608,76791.0,76790.0,0.00195309]
[1731201528828,0.3935,76791.0,76790.0,0.00195309]
[1731201529014,0.3935,76791.0,76768.0,0.15110766]
[1731201529015,0.065083,76783.0,76768.0,0.11228959]
[1731201529213,0.3608,76781.0,76768.0,0.11228959]
[1731201529413,0.065088,76777.0,76768.0,0.11228959]
[1731201531319,0.3923,76781.0,76768.0,0.11228959]
[1731201531523,0.42114458,76781.0,76768.0,0.11228959]
[1731201532431,0.48622958,76781.0,76768.0,0.11228959]
[1731201533530,0.3608,76781.0,76768.0,0.11228959]
[1731201533730,0.3608,76781.0,76780.0,0.11228959]
[1731201534225,0.3608,76781.0,76775.0,0.0322]
[1731201534730,0.065086,76779.0,76775.0,0.0322]
[1731201535634,0.3608,76781.0,76775.0,0.0322]
[1731201537329,0.3608,76781.0,76775.0,0.14448959]
[1731201537934,0.065081,76785.0,76775.0,0.0322]
[1731201538434,0.02842844,76789.0,76775.0,0.0322]
[1731201538620,0.3608,76791.0,76775.0,0.0322]
[1731201539024,0.065079,76787.0,76775.0,0.0322]
[1731201539534,0.3608,76791.0,76775.0,0.0322]
[1731201539730,0.065083,76782.0,76775.0,0.0322]
[1731201540128,0.065078,76788.0,76775.0,0.0322]
[1731201540330,0.38974727,76791.0,76780.0,0.065084]
[1731201540525,0.47308959,76799.0,76782.0,0.3608]
[1731201540526,0.02823138,76797.0,76782.0,0.3608]
[1731201540728,0.3608,76799.0,76787.0,0.11228959]
[1731201541133,0.065073,76794.0,76783.0,0.10808]
[1731201541337,0.3608,76799.0,76783.0,0.10808]
[1731201542029,0.425869,76799.0,76786.0,0.06508]
[1731201542231,0.425869,76799.0,76787.0,0.10808]
[1731201542824,0.3608,76799.0,76789.0,0.3608]
[1731201543024,0.3608,76799.0,76793.0,0.11228959]
[1731201543231,0.3608,76799.0,76798.0,0.11228959]
[1731201543536,0.06506,76810.0,76798.0,0.11228959]
[1731201543537,0.06506,76810.0,76798.0,0.58116959]
[1731201543736,0.38937718,76813.0,76798.0,0.3608]
[1731201543933,0.47308959,76799.0,76782.0,0.39525331]
[1731201544144,0.3608,76799.0,76788.0,0.065078]
[1731201544332,0.3608,76799.0,76790.0,0.065076]
[1731201544531,0.3608,76799.0,76793.0,0.11228959]
[1731201545237,0.3608,76799.0,76791.0,0.096775]
[1731201545430,0.3608,76799.0,76791.0,0.0317]
[1731201546237,0.3608,76799.0,76789.0,0.10808]
[1731201546531,0.06507,76798.0,76789.0,0.10808]
[1731201546742,0.2572112,76797.0,76789.0,0.10808]
[1731201547036,0.2572112,76797.0,76782.0,0.39525331]
[1731201547037,0.47308959,76792.0,76782.0,0.00195331]
[1731201547338,0.3608,76785.0,76782.0,0.00195331]
[1731201547546,0.065081,76784.0,76782.0,0.00195331]
[1731201551137,0.0325,76783.0,76782.0,0.00195331]
[1731201552146,0.065089,76776.0,76767.0,0.1706]
[1731201552435,0.0325,76783.0,76767.0,0.108]
[1731201552436,0.065092,76772.0,76767.0,0.108]
[1731201552641,0.3608,76774.0,76767.0,0.108]
[1731201553033,0.065091,76773.0,76767.0,0.108]
[1731201553831,0.3608,76774.0,76767.0,0.108]
[1731201554034,0.065094,76769.0,76767.0,0.108]
[1731201556552,0.065094,76769.0,76763.0,0.03881807]
[1731201556733,0.3608,76768.0,76763.0,0.03881807]
[1731201556927,0.065097,76766.0,76763.0,0.03881807]
[1731201557146,0.065097,76766.0,76760.0,0.15975742]
[1731201557147,0.03252181,76766.0,76761.0,0.06469678]
[1731201557441,0.03252181,76766.0,76765.0,0.0519637]
[1731201558039,0.03252181,76766.0,76762.0,0.03897277]
[1731201558337,0.03252181,76766.0,76760.0,0.108]
[1731201558338,0.3608,76768.0,76764.0,0.03897277]
[1731201559638,0.3608,76768.0,76761.0,0.22935429]
[1731201559639,0.3608,76768.0,76765.0,0.03897277]
[1731201559841,0.17738559,76767.0,76765.0,0.03897277]
[1731201560034,0.17738559,76767.0,76763.0,0.03897277]
[1731201560236,0.3608,76768.0,76765.0,0.03898072]
[1731201560237,0.065097,76766.0,76765.0,0.03898072]
[1731201560439,0.065097,76766.0,76761.0,0.0519637]
[1731201560637,0.11228959,76767.0,76762.0,0.03898203]
[1731201560839,0.0651,76763.0,76760.0,0.03898203]
[1731201561141,0.0651,76763.0,76759.0,0.0622]
[1731201561142,0.065102,76760.0,76759.0,0.0622]